bitfinex/quotes_ETHUSD_20241109
["timestamp","ask_amount","ask_price","bid_price","bid_amount"]
[1731187438810,0.67659853,3080.9,3080.4,0.7908]
[1731187439587,0.67659853,3081.0,3080.4,0.7908]
[1731187440949,0.67659853,3081.1,3080.4,0.7908]
[1731187441093,0.83737883,3081.0,3080.6,0.7908]
[1731187441439,0.67659853,3081.1,3080.6,0.7908]
[1731187441736,0.67659853,3081.2,3080.8,0.7908]
[1731187441903,0.03140793,3081.0,3080.8,0.7908]
[1731187442230,0.72420829,3081.4,3080.8,0.7908]
[1731187442231,0.03137584,3080.9,3080.8,0.7908]
[1731187442540,0.03137584,3080.9,3079.9,1.22916677]
[1731187442735,0.55,3081.0,3080.0,0.7908]
[1731187442911,0.03134875,3080.8,3080.0,0.7908]
[1731187443101,0.03138084,3080.9,3080.0,0.7908]
[1731187443411,0.03134875,3080.8,3080.0,0.7908]
[1731187444128,0.55,3081.0,3080.0,0.7908]
[1731187444129,0.03131666,3080.7,3080.0,0.7908]
[1731187444646,0.03128456,3080.6,3080.0,0.7908]
[1731187445136,0.67659853,3080.9,3080.0,0.7908]
[1731187445634,0.25516887,3080.8,3080.0,0.7908]
[1731187446035,0.25516887,3080.8,3079.5,1.22916677]
[1731187446036,0.55,3080.7,3079.5,1.22916677]
[1731187446192,0.55,3080.7,3079.6,0.7908]
[1731187446193,0.55,3080.5,3079.6,0.7908]
[1731187446393,1.22659853,3080.5,3079.6,0.7908]
[1731187446938,0.03120177,3080.4,3079.6,0.7908]
[1731187447143,0.55,3080.3,3079.6,0.7908]
[1731187447434,0.55,3080.3,3078.9,0.66325702]
[1731187447435,0.03110895,3080.2,3079.4,0.7908]
[1731187447636,0.55,3080.1,3079.4,0.7908]
[1731187448009,0.03100828,3080.0,3079.4,0.7908]
[1731187448594,0.03100828,3080.0,3079.6,0.7908]
[1731187449039,0.55,3080.4,3079.6,0.7908]
[1731187449239,0.03094112,3079.9,3079.6,0.7908]
[1731187449441,0.55,3080.4,3079.7,0.20199668]
[1731187449742,0.55,3080.4,3079.6,0.7908]
[1731187449743,0.03090901,3079.8,3079.6,0.7908]
[1731187449924,1.22659853,3080.4,3079.6,0.7908]
[1731187450240,0.03087689,3079.7,3079.6,0.7908]
[1731187450819,1.22659853,3080.4,3079.6,0.7908]
[1731187451098,2.00982012,3080.4,3079.6,0.7908]
[1731187451298,0.03106955,3080.3,3079.6,0.7908]
[1731187453138,0.70766808,3080.3,3079.6,0.7908]
[1731187453338,1.5445874,3080.3,3079.6,0.7908]
[1731187453525,2.0637451,3080.2,3079.3,2.01996677]
[1731187453727,0.83724325,3080.1,3079.3,0.7908]
[1731187453921,0.70761317,3080.1,3079.3,0.7908]
[1731187455451,0.30169926,3080.0,3079.3,2.01996677]
[1731187455752,0.30169926,3079.9,3079.3,2.01996677]
[1731187455962,0.30169926,3079.8,3079.3,2.01996677]
[1731187456252,0.03088619,3079.7,3079.3,2.01996677]
[1731187456856,0.03085407,3079.6,3079.4,0.30293378]
[1731187457025,0.03085407,3079.6,3079.5,0.30293378]
[1731187457214,0.55,3080.1,3079.5,0.30293378]
[1731187457415,0.55,3079.9,3079.6,0.30293378]
[1731187457736,0.55,3080.0,3079.3,2.01996677]
[1731187457940,0.30177973,3079.9,3079.7,0.30301542]
[1731187458150,0.55,3080.1,3079.3,2.01996677]
[1731187458458,0.55,3079.9,3079.8,0.30300983]
[1731187458692,0.85178466,3079.9,3079.8,0.30300983]
[1731187459726,0.85178466,3079.9,3079.4,0.48514869]
[1731187460064,0.30178466,3079.8,3079.5,0.78836612]
[1731187460212,0.55,3080.0,3079.6,0.48514869]
[1731187460561,0.30195021,3079.9,3079.7,0.30321743]
[1731187460855,0.55,3080.0,3079.8,0.30321743]
[1731187461043,0.30195165,3079.9,3079.5,0.48514527]
[1731187461362,0.55,3080.1,3079.6,0.78834191]
[1731187461512,0.30196214,3080.0,3079.7,0.78834191]
[1731187461718,0.85196214,3079.9,3079.8,0.30319664]
[1731187464571,0.85196214,3079.9,3079.3,2.01996677]
[1731187464875,0.55,3079.7,3079.4,0.78834519]
[1731187465087,0.55,3079.7,3079.5,0.30320969]
[1731187465251,0.55,3079.8,3079.6,0.30320969]
[1731187465454,0.85191964,3079.7,3079.4,0.48513264]
[1731187465682,0.55,3079.6,3079.5,0.78833637]
[1731187465843,0.55,3079.8,3079.5,0.78833637]
[1731187466182,0.85191385,3079.7,3079.6,0.30320373]
[1731187468075,1.68984344,3079.7,3079.6,0.30320373]
[1731187468273,0.55,3079.6,3079.4,0.48510957]
[1731187468475,0.55,3079.6,3079.3,0.7908]
[1731187468700,0.55,3079.7,3079.3,0.7908]
[1731187468895,0.30191545,3079.6,3079.3,0.7908]
[1731187469204,0.55,3079.7,3079.4,0.30322499]
[1731187469410,0.30196333,3079.6,3079.5,0.30322499]
[1731187469560,0.85196333,3079.6,3079.5,0.30322499]
[1731187470565,0.85196333,3079.6,3079.5,0.788461]
[1731187471098,0.55,3079.8,3079.5,0.788461]
[1731187471303,0.30196361,3079.7,3079.6,0.788461]
[1731187471462,0.55,3079.6,3079.0,0.7585]
[1731187471664,0.55,3079.4,3079.0,0.7585]
[1731187471862,0.55,3079.4,3079.1,0.30338704]
[1731187472107,0.03070907,3079.3,3079.2,0.7888063]
[1731187472407,0.85180177,3079.3,3079.2,0.7888063]
[1731187472606,0.85180177,3079.3,3079.2,0.30338704]
[1731187472765,2.39638545,3079.3,3079.2,0.30338704]
[1731187474775,2.39638545,3079.3,3078.7,1.98766677]
[1731187474776,0.55,3079.2,3078.7,1.98766677]
[1731187474991,0.55,3079.2,3078.8,0.19876668]
[1731187475192,0.03062407,3079.1,3078.9,0.30360175]
[1731187475397,0.03062407,3079.1,3079.0,0.30360175]
[1731187475705,0.33256909,3079.1,3079.0,0.78936403]
[1731187475889,0.88256909,3079.1,3079.0,0.78936403]
[1731187478294,0.55,3079.0,3078.7,1.98766677]
[1731187478475,0.55,3079.0,3078.7,2.18643345]
[1731187478676,0.03052832,3078.9,3078.7,2.18643345]
[1731187478873,0.03052832,3078.9,3078.8,0.30349994]
[1731187479112,0.55,3079.3,3078.8,0.30349994]
[1731187479314,0.03052832,3078.9,3078.8,0.48560051]
[1731187479515,0.55,3079.1,3078.8,1.05624015]
[1731187479715,0.58052832,3078.9,3078.6,2.00406677]
[1731187479940,0.55,3078.9,3078.6,2.00406677]
[1731187480219,0.58049619,3078.8,3078.7,1.56395541]
[1731187480571,0.55,3078.8,3078.7,1.56395541]
[1731187481816,0.55,3078.8,3078.7,2.79307395]
[1731187482022,0.55,3078.8,3078.7,3.07238135]
[1731187482522,0.55,3078.8,3078.7,1.84321458]
[1731187482691,0.55,3078.8,3078.7,3.07238135]
[1731187484905,0.55,3078.8,3078.7,2.28337417]
[1731187485113,0.67659853,3079.5,3078.7,3.0723921]
[1731187485423,0.67659853,3079.5,3078.2,3.0]
[1731187485424,0.33764684,3079.4,3079.0,1.22916677]
[1731187485732,0.03582831,3079.4,3079.1,0.78901793]
[1731187486026,0.30182218,3079.3,3079.2,0.78901793]
[1731187486247,0.30182218,3079.3,3079.2,0.30346843]
[1731187486410,0.89086479,3079.3,3079.2,0.30346843]
[1731187487911,1.7283915,3079.3,3079.2,0.30346843]
[1731187488221,1.72839163,3079.3,3079.2,0.30346843]
[1731187488426,1.72843121,3079.3,3079.2,0.30352588]
[1731187488590,2.40502974,3079.3,3079.2,0.30352588]
[1731187488790,2.40502974,3079.3,3078.8,0.48564142]
[1731187488791,1.72843531,3079.3,3078.7,0.7749]
[1731187489032,0.55,3079.2,3078.7,0.7749]
[1731187489405,0.55,3079.2,3078.8,0.78916801]
[1731187489610,0.55,3079.0,3078.9,0.78916801]
[1731187490029,0.58891118,3079.0,3078.9,0.78916801]
[1731187491864,0.58891118,3079.0,3078.9,0.78945345]
[1731187494753,0.58891118,3079.0,3078.9,1.06892434]
[1731187494954,0.58891118,3079.0,3078.9,0.27935202]
[1731187497031,0.58891118,3079.0,3078.9,0.76549006]
[1731187497562,0.58891118,3079.0,3078.9,1.06932634]
[1731187497939,0.58891118,3079.0,3078.9,1.06940899]
[1731187502283,0.58891118,3079.0,3078.9,0.79005697]
[1731187502483,0.58891118,3079.0,3078.9,0.79064604]
[1731187503083,1.45058166,3079.0,3078.9,0.79064604]
[1731187503810,2.28955684,3079.0,3078.9,0.79064604]
[1731187504011,2.28955684,3079.0,3078.9,0.79072404]
[1731187504294,5.22188544,3079.0,3078.9,0.79073665]
[1731187504467,3.87308189,3079.0,3078.9,0.79073665]
[1731187505125,3.87308189,3079.0,3078.9,0.30415278]
[1731187505454,5.56360975,3079.0,3078.9,0.30415278]
[1731187505671,3.87308189,3079.0,3078.9,0.30415278]
[1731187506395,5.56320017,3079.0,3078.2,1.22916677]
[1731187506569,0.67604527,3078.5,3078.3,0.30398067]
[1731187506763,1.22604527,3078.5,3078.4,0.30398067]
[1731187506951,2.92574833,3078.5,3078.4,0.30398067]
[1731187507451,2.92574833,3078.5,3078.4,0.30389635]
[1731187507955,0.55,3078.4,3078.0,2.06186677]
[1731187508155,0.55,3078.4,3078.3,1.22916677]
[1731187508356,0.67604527,3078.7,3078.3,1.53304367]
[1731187508357,0.55,3078.6,3078.3,1.53304367]
[1731187508678,0.55,3078.6,3078.5,1.22916677]
[1731187508880,1.10913911,3078.6,3078.5,1.53304367]
[1731187509092,1.10913911,3078.6,3078.5,0.3038769]
[1731187509093,1.9478063,3078.6,3078.5,0.3038769]
[1731187509292,2.92592174,3078.6,3078.5,0.3038769]
[1731187509491,2.24987647,3078.6,3078.5,0.3038769]
[1731187509695,3.26394438,3078.6,3078.5,0.3038769]
[1731187510469,2.24987647,3078.6,3078.5,0.3038769]
[1731187511200,2.24977979,3078.6,3078.2,1.22916677]
[1731187511406,0.55,3078.4,3078.2,1.22916677]
[1731187511780,0.55,3078.4,3078.3,0.30372357]
[1731187511986,1.10920988,3078.4,3078.3,0.30372357]
[1731187512207,1.10919594,3078.4,3078.3,0.30372357]
[1731187513100,1.1091167,3078.4,3078.3,0.30372357]
[1731187513515,2.62405292,3078.4,3078.3,0.30372357]
[1731187514025,2.24970309,3078.4,3078.3,0.30372357]
[1731187514543,2.92591522,3078.4,3078.3,0.30372357]
[1731187514686,3.82920334,3078.4,3078.3,0.30372357]
[1731187514885,3.82920334,3078.4,3077.9,0.227299]
[1731187514886,5.51965444,3078.4,3077.9,0.227299]
[1731187515085,0.55,3078.0,3077.9,0.227299]
[1731187515331,3.26347075,3078.0,3077.9,0.53080215]
[1731187515687,3.83677826,3078.0,3077.9,0.53080215]
[1731187515889,3.94050053,3078.0,3077.9,0.53080215]
[1731187516104,5.29219074,3078.0,3077.9,0.53080215]
[1731187516315,5.29219074,3078.0,3077.9,0.227299]
[1731187516588,2.62293856,3078.0,3077.9,0.53063758]
[1731187516916,0.55,3078.1,3077.9,0.53063758]
[1731187517117,0.55,3078.1,3078.0,0.30333858]
[1731187517298,0.67507011,3078.3,3077.9,0.227299]
[1731187517499,0.67507011,3078.5,3078.0,1.12822917]
[1731187517703,0.67507011,3078.6,3078.4,1.22916677]
[1731187517904,0.55832584,3078.5,3078.4,1.22916677]
[1731187518103,1.0125901,3078.8,3078.4,1.53236235]
[1731187518104,0.67507011,3078.7,3078.4,1.53236235]
[1731187518304,1.39578295,3078.6,3078.5,0.30319558]
[1731187518508,2.07085306,3078.6,3078.5,0.30319558]
[1731187518895,2.62085306,3078.6,3078.5,0.30319558]
[1731187521106,0.55,3078.5,3078.0,0.88996948]
[1731187521631,0.55,3078.6,3078.0,0.88996948]
[1731187521830,1.22507011,3078.6,3078.0,0.88996948]
[1731187522131,0.55,3078.6,3078.0,0.88996948]
[1731187522303,0.55,3078.6,3078.1,0.30324615]
[1731187522304,0.55817119,3078.5,3078.1,0.30324615]
[1731187522631,1.22507011,3078.6,3078.2,0.30324615]
[1731187522935,0.55,3078.4,3078.3,0.30324615]
[1731187523132,1.10815738,3078.4,3078.3,0.30324615]
[1731187523718,1.10815738,3078.4,3078.3,0.30329583]
[1731187523921,2.92143792,3078.4,3078.3,0.30329583]
[1731187524135,2.92141884,3078.4,3078.3,0.30329583]
[1731187524339,3.31481973,3078.4,3078.3,0.30329583]
[1731187524539,3.75537756,3078.4,3078.0,0.30329583]
[1731187524698,0.67462093,3078.1,3077.9,0.227299]
[1731187524898,2.92063839,3078.0,3077.9,0.227299]
[1731187525138,2.92063839,3078.0,3077.9,0.53065514]
[1731187525437,2.92063839,3078.0,3077.9,0.227299]
[1731187525744,1.10815738,3078.0,3077.9,0.53065514]
[1731187526192,2.61940624,3078.0,3077.9,0.227299]
[1731187526395,1.40921944,3078.0,3077.9,0.53065514]
[1731187526634,1.10815738,3078.0,3077.9,0.53065514]
[1731187526843,1.40921915,3078.0,3077.9,0.53065514]
[1731187527149,1.94442784,3078.0,3077.9,0.227299]
[1731187527299,2.24544472,3078.0,3077.9,0.227299]
[1731187527494,2.63864443,3078.0,3077.9,0.227299]
[1731187527710,3.31326536,3078.0,3077.9,0.227299]
[1731187528356,3.31252784,3078.0,3077.9,0.227299]
[1731187528563,2.63790691,3078.0,3077.9,0.227299]
[1731187529747,1.24421659,3078.0,3077.9,0.227299]
[1731187530063,0.55,3078.1,3077.9,0.227299]
[1731187531143,0.55,3078.0,3077.9,0.227299]
[1731187531499,0.55,3078.1,3077.9,0.227299]
[1731187531695,0.8511751,3078.0,3077.9,0.227299]
[1731187531853,0.8511751,3078.0,3077.9,0.53058153]
[1731187534265,0.8511751,3078.0,3077.9,0.53078564]
[1731187535785,1.40847107,3078.0,3077.9,0.53078564]
[1731187536579,1.40843075,3078.0,3077.9,0.53078564]
[1731187537445,1.10725565,3078.0,3077.9,0.227299]
[1731187537647,1.40859925,3078.0,3077.9,0.53078706]
[1731187538437,0.8513436,3078.0,3077.9,0.53078706]
[1731187541181,0.8513436,3078.0,3077.9,0.5308561]
[1731187541384,0.8513436,3078.0,3077.9,0.227299]
[1731187541573,0.55,3078.0,3077.9,0.53088537]
[1731187541774,1.40872352,3078.0,3077.9,0.53088537]
[1731187542370,1.40875479,3078.0,3077.9,0.53088537]
[1731187542570,0.85146326,3078.0,3077.9,0.53088537]
[1731187544597,0.85146326,3078.0,3077.9,0.53098922]
[1731187545766,1.40914144,3078.0,3077.9,0.53098922]
[1731187546185,2.24565813,3078.0,3077.9,0.53098922]
[1731187546387,1.40914144,3078.0,3077.9,0.53098922]
[1731187547951,2.92080209,3078.0,3077.9,0.53099647]
[1731187548782,1.40914144,3078.0,3077.9,0.53099647]
[1731187549005,2.92084544,3078.0,3077.9,0.53099647]
[1731187549402,2.92114556,3078.0,3077.9,0.53099647]
[1731187551216,2.92145469,3078.0,3077.9,0.53099647]
[1731187551581,2.6196823,3078.0,3077.9,0.53099647]
[1731187551812,2.24664278,3078.0,3077.9,0.83501073]
[1731187552205,2.92172105,3078.0,3077.9,0.53131326]
[1731187552410,2.24664278,3078.0,3077.9,0.53131326]
[1731187552622,2.24678679,3078.0,3077.9,0.53131326]
[1731187552981,3.71975903,3078.0,3077.9,0.53131326]
[1731187553320,4.02190019,3078.0,3077.9,0.53131326]
[1731187553474,5.47813103,3078.0,3077.9,0.19924247]
[1731187553678,5.47892846,3078.0,3077.9,0.19924247]
[1731187553930,5.17690292,3078.0,3077.9,0.19924247]
[1731187554738,5.17690292,3078.0,3077.5,0.8137]
[1731187554882,0.55,3077.6,3077.5,0.8137]
[1731187555220,2.24776417,3077.6,3077.5,0.8137]
[1731187555430,2.24807365,3077.6,3077.5,0.8137]
[1731187556179,1.41055275,3077.6,3077.5,0.8137]
[1731187558727,1.41055275,3077.6,3077.5,2.0446211]
[1731187559031,0.85220549,3077.6,3077.5,2.0446211]
[1731187560802,0.85220549,3077.6,3077.5,0.8137]
[1731187561000,1.41071441,3077.6,3077.5,0.8137]
[1731187561656,1.41071441,3077.6,3077.5,2.0446211]
[1731187562129,0.85212525,3077.6,3077.5,2.0446211]
[1731187562835,0.85212525,3077.6,3077.5,0.8137]
[1731187562992,1.41074147,3077.6,3077.5,0.8137]
[1731187563188,2.24865548,3077.6,3077.5,0.8137]
[1731187563406,1.41074147,3077.6,3077.5,2.0446211]
[1731187563704,0.55,3077.7,3077.5,2.0446211]
[1731187564112,1.01286233,3078.0,3077.5,2.0446211]
[1731187564113,0.67524155,3077.9,3077.5,1.43538321]
[1731187564295,0.67524155,3078.0,3077.8,0.8137]
[1731187564631,0.67524155,3078.1,3077.8,0.8137]
[1731187564840,1.6992382,3078.0,3077.8,0.8137]
[1731187565132,0.67524155,3078.1,3077.8,0.8137]
[1731187565334,1.69920293,3078.0,3077.9,1.2309211]
[1731187565567,0.55,3078.0,3077.9,1.5350781]
[1731187565719,0.67524155,3078.2,3077.9,1.5350781]
[1731187565923,0.67524155,3078.3,3078.1,1.2309211]
[1731187566166,1.69932187,3078.2,3078.1,1.2309211]
[1731187566471,2.37456342,3078.2,3078.1,1.53496148]
[1731187566784,0.67524155,3078.4,3078.2,0.8137]
[1731187567064,0.67524155,3078.5,3078.2,2.0446211]
[1731187567269,0.5589993,3078.4,3078.3,0.30401157]
[1731187567572,0.5589993,3078.4,3078.3,0.56220263]
[1731187567863,1.01286233,3078.6,3078.3,0.56220263]
[1731187567864,0.67524155,3078.6,3078.3,1.37590263]
[1731187568063,1.39753465,3078.5,3078.4,1.53477385]
[1731187568465,2.0727762,3078.5,3078.4,1.53477385]
[1731187568651,0.55923252,3078.5,3078.4,1.53477385]
[1731187568963,1.10923252,3078.5,3078.4,1.53477385]
[1731187569167,1.10923252,3078.5,3078.4,0.30385275]
[1731187569323,2.62280241,3078.5,3078.4,0.30385275]
[1731187569569,2.98636888,3078.5,3078.4,0.30385275]
[1731187570365,2.62280241,3078.5,3078.4,0.30385275]
[1731187570863,0.55,3078.4,3078.1,1.2309211]
[1731187571229,0.55,3078.4,3078.2,0.30353007]
[1731187571423,0.55,3078.4,3078.3,0.30353007]
[1731187571676,1.10872269,3078.4,3078.3,0.30353007]
[1731187572655,0.55,3078.4,3078.3,0.30353007]
[1731187572856,0.55,3078.5,3078.3,0.30353007]
[1731187573074,0.55,3078.5,3078.1,1.2309211]
[1731187573271,0.55,3078.5,3078.2,0.30344574]
[1731187573444,0.55,3078.5,3078.3,0.30344574]
[1731187573644,0.55,3078.5,3078.4,0.30344574]
[1731187573849,1.94640898,3078.5,3078.4,0.30344574]
[1731187574484,1.94640898,3078.5,3078.4,0.30336793]
[1731187574948,1.10856359,3078.5,3078.4,0.30336793]
[1731187576456,0.55,3078.5,3078.4,0.30336793]
[1731187576662,0.55,3078.6,3078.4,0.30336793]
[1731187576888,0.55,3078.6,3078.5,0.30336793]
[1731187577092,1.94582145,3078.6,3078.5,0.30336793]
[1731187577326,2.621063,3078.6,3078.5,0.30336793]
[1731187577634,2.621063,3078.6,3078.1,1.2309211]
[1731187577635,1.94582145,3078.6,3078.1,1.2309211]
[1731187577919,0.55,3078.6,3078.1,1.2309211]
[1731187578226,0.55,3078.6,3078.2,0.30328146]
[1731187578583,0.55,3078.6,3078.3,0.30328146]
[1731187578794,0.55,3078.6,3078.4,0.30328146]
[1731187579111,0.55,3078.6,3078.5,0.30328146]
[1731187579323,1.10822461,3078.6,3078.5,0.30328146]
[1731187581014,1.10822461,3078.6,3078.5,0.30323506]
[1731187583885,1.10809606,3078.6,3078.5,0.30323506]
[1731187584088,1.10809606,3078.6,3078.5,0.30325156]
[1731187584540,1.10809606,3078.6,3078.0,0.8137]
[1731187584736,0.55,3078.6,3078.1,0.30329811]
[1731187584996,0.55,3078.6,3078.2,0.30329811]
[1731187585140,0.55,3078.6,3078.3,0.30329811]
[1731187585344,0.55,3078.6,3078.4,0.30329811]
[1731187585567,0.55,3078.6,3078.5,0.30329811]
[1731187585750,1.10807908,3078.6,3078.5,0.30329811]
[1731187587234,0.55807908,3078.6,3078.5,0.30329811]
[1731187587441,0.67524155,3078.8,3078.5,0.30329811]
[1731187587664,0.85961358,3078.7,3078.6,0.30329811]
[1731187587878,0.85961358,3078.7,3078.4,0.7949]
[1731187587879,0.55809953,3078.7,3078.4,0.7949]
[1731187588083,0.67524155,3078.8,3078.6,0.30347543]
[1731187588288,0.85963833,3078.7,3078.4,0.7949]
[1731187588467,0.55,3078.7,3078.5,0.30355124]
[1731187588876,0.55,3078.7,3078.6,0.30355124]
[1731187589088,1.40992295,3078.7,3078.6,0.30355124]
[1731187591152,1.40992295,3078.7,3078.6,0.30362295]
[1731187591766,1.40992295,3078.7,3078.6,0.30373351]
[1731187593212,0.55,3078.7,3078.6,1.09863351]
[1731187593497,0.55,3079.0,3078.6,1.09863351]
[1731187593663,0.55,3078.8,3078.7,0.30373351]
[1731187593857,0.89468289,3078.8,3078.7,0.30373351]
[1731187597801,0.89468289,3078.8,3078.6,0.7949]
[1731187598003,0.55,3078.7,3078.6,0.7949]
[1731187598312,0.85227141,3078.7,3078.6,0.7949]
[1731187598525,0.89478992,3078.7,3078.6,0.30406956]
[1731187600886,0.89478992,3078.7,3078.6,0.3040447]
[1731187601510,0.59251851,3078.7,3078.4,0.8265]
[1731187601684,0.59251851,3078.7,3078.5,0.3040361]
[1731187602006,0.59251851,3078.7,3078.6,0.3040353]
[1731187602212,0.89483868,3078.7,3078.6,0.3040353]
[1731187602703,0.59251851,3078.7,3078.4,1.03224211]
[1731187603942,0.59251851,3078.7,3078.5,0.30404035]
[1731187604247,0.59251851,3078.7,3078.6,0.30404129]
[1731187604547,1.45370749,3078.7,3078.6,0.30404129]
[1731187605240,2.29207646,3078.7,3078.6,0.30404129]
[1731187605746,0.59251851,3078.7,3078.6,1.13054129]
[1731187605947,0.59251851,3078.7,3078.6,1.39375796]
[1731187606101,0.59251851,3078.7,3078.6,1.458716]
[1731187606498,0.59251851,3078.7,3078.6,1.39375796]
[1731187607152,0.59251851,3078.7,3078.6,0.30404129]
[1731187607298,2.96796204,3078.7,3078.6,0.30404129]
[1731187607503,3.30558282,3078.7,3078.6,0.30404129]
[1731187608423,3.30561375,3078.7,3078.6,0.30404129]
[1731187608748,4.76367852,3078.7,3078.6,0.30404129]
[1731187609333,5.41006997,3078.7,3078.6,0.30404129]
[1731187609534,4.05837976,3078.7,3078.6,0.30404129]
[1731187610142,4.01586125,3078.7,3078.6,0.30404129]
[1731187612197,4.01586125,3078.7,3078.6,0.30400638]
[1731187614054,3.3705636,3078.7,3078.6,0.30400638]
[1731187614204,2.82100468,3078.7,3078.6,0.30400638]
[1731187614410,4.17501287,3078.7,3078.6,0.30400638]
[1731187614633,2.82100468,3078.7,3078.6,0.30400638]
[1731187615303,2.82100468,3078.7,3078.6,0.30391021]
[1731187615504,3.37104851,3078.7,3078.6,0.30391021]
[1731187615711,0.55,3078.6,3078.5,0.8067]
[1731187615943,3.2673485,3078.6,3078.5,0.8067]
[1731187616151,0.55981529,3078.6,3078.5,2.54529367]
[1731187616352,0.6770431,3078.8,3078.6,0.8067]
[1731187616552,0.6770431,3078.9,3078.7,2.59606093]
[1731187616856,0.6022957,3078.8,3078.7,2.29215047]
[1731187617009,0.6022957,3078.8,3078.7,2.59601866]
[1731187617214,0.0425462,3078.8,3078.7,2.59601866]
[1731187617414,0.60228677,3078.8,3078.7,2.59601866]
[1731187617735,1.15228677,3078.8,3078.7,2.59601866]
[1731187618474,0.5925462,3078.8,3078.7,2.59601866]
[1731187621238,0.5925462,3078.8,3078.7,2.29215047]
[1731187621432,0.60237502,3078.8,3078.7,2.34136882]
[1731187621632,0.0425462,3078.8,3078.7,2.34136882]
[1731187621946,0.0425462,3078.8,3078.7,2.34135724]
[1731187622345,0.6770431,3079.2,3078.9,0.8067]
[1731187622575,0.6770431,3079.4,3079.1,2.0376211]
[1731187622738,0.55964635,3079.3,3079.1,2.0376211]
[1731187622937,0.6770431,3079.4,3079.2,0.30373614]
[1731187623243,0.55964618,3079.3,3079.1,2.0376211]
[1731187623451,0.6770431,3079.4,3079.2,0.3035844]
[1731187623648,0.55,3079.2,3079.1,2.0376211]
[1731187623836,0.55,3079.3,3079.1,2.58303465]
[1731187624034,0.55,3079.3,3079.2,0.30358444]
[1731187624274,1.10955633,3079.3,3079.2,0.30358444]
[1731187624655,0.55,3079.4,3079.2,0.30358444]
[1731187624932,0.55,3079.4,3079.2,0.30350033]
[1731187625149,0.55,3079.4,3079.3,0.30349875]
[1731187625347,1.10933676,3079.4,3079.3,0.30349875]
[1731187628179,1.10933676,3079.4,3079.0,1.2309211]
[1731187628380,0.55,3079.4,3079.3,0.30330958]
[1731187628537,1.10893798,3079.4,3079.3,0.30330958]
[1731187628737,0.55,3079.4,3079.3,0.30330958]
[1731187629283,2.62288362,3079.4,3079.3,0.30330958]
[1731187629454,2.24865526,3079.4,3079.3,0.30330958]
[1731187630136,3.26419214,3079.4,3079.3,0.30330958]
[1731187630338,3.72601217,3079.4,3079.3,0.30330958]
[1731187630537,5.1820363,3079.4,3078.9,0.30330958]
[1731187630766,0.55,3079.0,3078.8,0.8067]
[1731187630965,0.55,3079.0,3078.9,0.30326192]
[1731187631180,0.67576792,3079.2,3078.9,0.30326192]
[1731187631181,0.55,3079.1,3078.9,0.30326192]
[1731187631383,0.55,3079.1,3078.3,3.0]
[1731187631384,1.22576792,3079.1,3079.0,0.30326192]
[1731187631582,3.26209866,3079.1,3079.0,0.30326192]
[1731187631945,3.26209866,3079.1,3078.6,0.30328025]
[1731187632286,0.55,3078.9,3078.7,0.30328025]
[1731187632586,0.55,3078.9,3078.8,0.30328025]
[1731187632739,1.10875304,3078.9,3078.8,0.30328025]
[1731187633083,1.94686929,3078.9,3078.8,0.30328025]
[1731187633287,1.10875304,3078.9,3078.8,0.30328025]
[1731187634171,1.10874195,3078.9,3078.8,0.30328025]
[1731187635092,1.10874195,3078.9,3078.8,0.30328305]
[1731187635392,1.10874195,3078.9,3078.8,0.30329053]
[1731187635601,2.12522239,3078.9,3078.8,0.30329053]
[1731187635883,3.44042474,3078.9,3078.4,0.30329053]
[1731187636187,0.55,3078.7,3078.5,0.30329053]
[1731187636353,0.55,3078.7,3078.6,0.30329053]
[1731187636354,1.22563839,3078.7,3078.6,0.30329053]
[1731187636554,2.62230791,3078.7,3078.6,0.30329053]
[1731187637238,2.98590389,3078.7,3078.6,0.30329053]
[1731187637658,2.37381336,3078.7,3078.6,1.10689053]
[1731187637849,0.55866781,3078.7,3078.6,2.33781163]
[1731187638282,1.01365188,3079.0,3078.6,2.33781163]
[1731187638283,0.67558672,3078.9,3078.6,2.33781163]
[1731187638460,0.55867049,3078.8,3078.7,0.30329053]
[1731187638659,1.39665851,3078.8,3078.7,0.30329053]
[1731187638883,1.94665851,3078.8,3078.7,0.30329053]
[1731187639183,0.55,3078.8,3078.7,0.30329053]
[1731187639399,0.55,3078.9,3078.7,0.30329053]
[1731187639550,0.55,3078.9,3078.8,0.30329053]
[1731187639746,1.94672585,3078.9,3078.8,0.30329053]
[1731187639947,1.10869127,3078.9,3078.8,0.30329053]
[1731187640152,0.55,3078.9,3078.8,1.76799279]
[1731187640459,0.55,3079.0,3078.9,0.8036]
[1731187640702,0.55,3079.0,3078.9,1.10689053]
[1731187641015,0.55,3079.1,3078.9,1.10689053]
[1731187641181,0.55,3079.1,3079.0,0.30329053]
[1731187641382,1.94678715,3079.1,3079.0,0.30329053]
[1731187641578,1.94678715,3079.1,3078.9,0.8036]
[1731187641783,0.55,3079.1,3078.9,0.8036]
[1731187642314,0.55,3079.1,3079.0,0.30338186]
[1731187642525,1.94679355,3079.1,3079.0,0.30338186]
[1731187642695,1.9467988,3079.1,3079.0,0.30338186]
[1731187643130,1.10871742,3079.1,3079.0,0.30338186]
[1731187643280,2.24865019,3079.1,3079.0,0.30338186]
[1731187643593,1.10871742,3079.1,3079.0,0.30338186]
[1731187644463,1.10872662,3079.1,3079.0,0.30338186]
[1731187644635,0.55,3079.2,3079.0,0.30338186]
[1731187644776,0.55,3079.2,3079.1,0.30338186]
[1731187644976,1.10872782,3079.2,3079.0,1.55304281]
[1731187645232,0.55,3079.2,3079.1,1.10719021]
[1731187645390,0.55,3079.4,3079.1,1.37321351]
[1731187645600,0.55,3079.5,3079.2,1.53451131]
[1731187645997,0.55,3079.5,3079.3,0.30359021]
[1731187646196,0.67558672,3079.6,3079.4,1.53451131]
[1731187646394,0.67558672,3079.9,3079.5,1.17213689]
[1731187646594,0.67558672,3080.0,3079.8,0.8036]
[1731187646824,0.67558672,3080.2,3079.9,1.53451131]
[1731187646992,0.86079109,3080.1,3080.0,0.30359021]
[1731187647730,1.1087142,3080.1,3080.0,0.30359021]
[1731187648276,1.1087142,3080.1,3079.8,0.8036]
[1731187648552,0.67558672,3080.4,3079.9,3.36815083]
[1731187648720,0.67558672,3080.5,3079.9,3.30322048]
[1731187648915,0.67558672,3080.7,3080.1,0.8036]
[1731187649124,0.55828746,3080.6,3080.2,0.30322048]
[1731187649345,0.22475261,3080.6,3080.2,0.30322048]
[1731187649504,0.30182858,3080.6,3080.3,0.30322048]
[1731187649709,0.55,3080.5,3080.4,0.30322048]
[1731187650009,2.9228436,3080.5,3080.2,0.30322048]